Workbook

Sheet PFP
A1: PROPOSTA FINANCEIRA DO PROJETO | J1: CODIGO:
J2: PFP
A3: NOME DA CONSULTORA:
A5: PROJETO: | F5: CONTRATANTE: | J5: BASE: Maio/2023
A6: Ponte Rio Paranã /GO | F6: Codevasf (9ª SR)
A7: Base | B7: Cod1 | C7: Cod2 | D7: Categoria / Insumo | E7: Uni | F7: Qde | G7: CUD | H7: PU | I7: FatorK | J7: CT | K7: PT | AML7: ='TC_Mão de obra'!$A$1 -> Código | AMM7: ='TC_Mão de obra'!$B$1 -> Categoria | AMN7: ='TC_Mão de obra'!$C$1 -> Unid. | AMO7: ='TC_Mão de obra'!$D$1 -> Salário | AMP7: ='TC_Mão de obra'!$O$1 -> Encargos Totais | AMR7: ='TC_Mão de obra'!$Q$1 -> Valor Total
A8: SICRO | B8: MO | C8: ='CRO1_Ins-Pro'!B4 -> P8061 | D8: ='CRO1_Ins-Pro'!C4 -> Engenheiro Sênior (Coordenador) | E8: ='CRO1_Ins-Pro'!D4 -> mês | F8: ='CRO1_Ins-Pro'!E4 -> 7 | G8: =AMO8 -> 16918.6 | H8: =ROUND(I8*G8,2) -> 43531.56 | I8: ='PFP2.1_FatorKa'!J8 -> 2.573 | J8: =ROUND(F8*G8,2) -> 118430.2 | K8: =ROUND(F8*H8,2) -> 304720.92 | AML8: ='TC_Mão de obra'!$A$42 -> P8061 | AMM8: ='TC_Mão de obra'!$B$42 -> Engenheiro coordenador | AMN8: ='TC_Mão de obra'!$C$42 -> mês | AMO8: ='TC_Mão de obra'!$D$42 -> 16918.6 | AMP8: ='TC_Mão de obra'!$O$42 -> 0.8558 | AMQ8: ='TC_Mão de obra'!$P$42 -> 14478.88 | AMR8: ='TC_Mão de obra'!$Q$42 -> 31397.48 | AMS8: =ROUND(F8*AMQ8,2) -> 101352.16
A9: SICRO | B9: MO | C9: ='CRO1_Ins-Pro'!B5 -> P8067 | D9: ='CRO1_Ins-Pro'!C5 -> Engenheiro Sênior – Projetista Ponte | E9: ='CRO1_Ins-Pro'!D5 -> mês | F9: ='CRO1_Ins-Pro'!E5 -> 2 | G9: =AMO9 -> 14506.03 | H9: 37516.95 | I9: ='PFP2.1_FatorKa'!J9 -> 2.5863 | J9: 29012.06 | K9: 75033.9 | AML9: ='TC_Mão de obra'!$A$48 -> P8067 | AMM9: ='TC_Mão de obra'!$B$48 -> Engenheiro de projetos sênior | AMN9: ='TC_Mão de obra'!$C$48 -> mês | AMO9: ='TC_Mão de obra'!$D$48 -> 14506.03 | AMP9: ='TC_Mão de obra'!$O$48 -> 0.8661 | AMQ9: ='TC_Mão de obra'!$P$48 -> 12563.94 | AMR9: ='TC_Mão de obra'!$Q$48 -> 27069.97 | AMS9: =ROUND(F9*AMQ9,2) -> 25127.88
A10: SICRO | B10: MO | C10: ='CRO1_Ins-Pro'!B6 -> P8066 | D10: ='CRO1_Ins-Pro'!C6 -> Engenheiro Pleno – Projetista Estrada | E10: ='CRO1_Ins-Pro'!D6 -> mês | F10: ='CRO1_Ins-Pro'!E6 -> 1.5 | G10: =AMO10 -> 11294.64 | H10: 29503.86 | I10: ='PFP2.1_FatorKa'!J10 -> 2.6122 | J10: 16941.96 | K10: 44255.79 | AML10: ='TC_Mão de obra'!$A$47 -> P8066 | AMM10: ='TC_Mão de obra'!$B$47 -> Engenheiro de projetos pleno | AMN10: ='TC_Mão de obra'!$C$47 -> mês | AMO10: ='TC_Mão de obra'!$D$47 -> 11294.64 | AMP10: ='TC_Mão de obra'!$O$47 -> 0.8863 | AMQ10: ='TC_Mão de obra'!$P$47 -> 10010.57 | AMR10: ='TC_Mão de obra'!$Q$47 -> 21305.21 | AMS10: 15015.86
A11: SICRO | B11: MO | C11: ='CRO1_Ins-Pro'!B7 -> P8058 | D11: ='CRO1_Ins-Pro'!C7 -> Engenheiro Pleno – Ambiental | E11: ='CRO1_Ins-Pro'!D7 -> mês | F11: ='CRO1_Ins-Pro'!E7 -> 1.5 | G11: =AMO11 -> 12074.42 | H11: 31475.6 | I11: ='PFP2.1_FatorKa'!J11 -> 2.6068 | J11: 18111.63 | K11: 47213.4 | AML11: ='TC_Mão de obra'!$A$39 -> P8058 | AMM11: ='TC_Mão de obra'!$B$39 -> Engenheiro ambiental pleno | AMN11: ='TC_Mão de obra'!$C$39 -> mês | AMO11: ='TC_Mão de obra'!$D$39 -> 12074.42 | AMP11: ='TC_Mão de obra'!$O$39 -> 0.8821 | AMQ11: ='TC_Mão de obra'!$P$39 -> 10651.09 | AMR11: ='TC_Mão de obra'!$Q$39 -> 22725.51 | AMS11: 15976.64
A12: SICRO | B12: MO | C12: ='CRO1_Ins-Pro'!B8 -> P8135 | D12: ='CRO1_Ins-Pro'!C8 -> Administrativo (Secretariado) | E12: ='CRO1_Ins-Pro'!D8 -> mês | F12: ='CRO1_Ins-Pro'!E8 -> 7 | G12: =AMO12 -> 2364.31 | H12: 7892.07 | I12: ='PFP2.1_FatorKa'!J12 -> 3.338 | J12: 16550.17 | K12: 55244.49 | AML12: ='TC_Mão de obra'!$A$77 -> P8135 | AMM12: ='TC_Mão de obra'!$B$77 -> Secretária | AMN12: ='TC_Mão de obra'!$C$77 -> mês | AMO12: ='TC_Mão de obra'!$D$77 -> 2364.31 | AMP12: ='TC_Mão de obra'!$O$77 -> 1.4521 | AMQ12: ='TC_Mão de obra'!$P$77 -> 3433.28 | AMR12: ='TC_Mão de obra'!$Q$77 -> 5797.59 | AMS12: 24032.96
A13: PROP | B13: DP | C13: ='CRO1_Ins-Pro'!B9 -> V1 | D13: ='CRO1_Ins-Pro'!C9 -> Diárias | E13: ='CRO1_Ins-Pro'!D9 -> dia | F13: ='CRO1_Ins-Pro'!E9 -> 13 | G13: 268 | H13: 343.79 | I13: =PFP3_FatorKc!$E$19 -> 1.2828 | J13: 3484 | K13: 4469.27
A14: GOINFRA | B14: LO | C14: 10202 | D14: ='CRO1_Ins-Pro'!C10 -> Pick-up Cab. Dupla 2.8 4x4 Diesel | E14: ='CRO1_Ins-Pro'!D10 -> dia | F14: ='CRO1_Ins-Pro'!E10 -> 7 | G14: 322.11 | H14: 413.2 | I14: =PFP3_FatorKc!$E$19 -> 1.2828 | J14: 2254.77 | K14: 2892.4
A15: CODE | B15: EM | C15: ='CRO1_Ins-Pro'!B11 -> M4 | D15: ='CRO1_Ins-Pro'!C11 -> Relatório Final | E15: ='CRO1_Ins-Pro'!D11 -> un | F15: ='CRO1_Ins-Pro'!E11 -> 1 | G15: 1478.8 | H15: 1897 | I15: =PFP3_FatorKc!$E$19 -> 1.2828 | J15: 1478.8 | K15: 1897
A16: CODE | B16: SG | C16: TP | D16: Levantamento Planialtimetrico com RPA (VANT) | E16: ha | F16: 1300 | G16: - | H16: ='PFP1.1_Topo_RioParanã'!F18 -> 47.93 | I16: - | J16: - | K16: 62309
A17: CODE | B17: SG | C17: ='CRO1_Ins-Pro'!B13 -> TP | D17: ='CRO1_Ins-Pro'!C13 -> Serviços Topográficos (exceto LP com RPA) | E17: ='CRO1_Ins-Pro'!D13 -> un | F17: ='CRO1_Ins-Pro'!E13 -> 1 | G17: - | H17: =('PFP1.1_Topo_RioParanã'!G23)-K16 -> 100983.84 | I17: - | J17: - | K17: =ROUND(F17*H17,2) -> 100983.84
A18: CODE | B18: SG | C18: ='CRO1_Ins-Pro'!B14 -> GT | D18: ='CRO1_Ins-Pro'!C14 -> Total Serviços Geotécnicos | E18: ='CRO1_Ins-Pro'!D14 -> un | F18: ='CRO1_Ins-Pro'!E14 -> 1 | G18: - | H18: ='PFP1.2_Geo_RioParanã'!G42 -> 161740.32 | I18: - | J18: - | K18: 161740.32
A19: TOTAL DOS CUSTOS DIRETOS | H19: =SUM(J8:J18) -> 206263.59
A20: TOTAL DOS ENCARGOS E DISPESAS DIVERSAS | H20: =H21-H19 -> 329463.58
A21: VALOR TOTAL DA MÃO-DE-OBRA E DESPESAS ADIMINISTRATIVAS | H21: =SUM(K8:K15) -> 535727.17
A22: VALOR TOTAL DOS SERVIÇOS TOPOGRÁFICOS E GEOTÉCNICOS | H22: =SUM(K16:K18) -> 325033.16
A23: TOTAL DA PROPOSTA | H23: =H21+H22 -> 860760.33
A24: NOME DO INFORMANTE: | J24: QUALIFICAÇÃO
A26: ASSINATURA: | J26: DATA:
A28: OBSERVAÇÃO:
A29: Alocar os Insumos MO, com respectivo FatorK, dentro da categoria de vínculo contratual (com ou sem) de cada tipo de profissional
A30: Uni - unidade de medição do insumo;
A31: Qde - Quantidade do Insumo (não pode ocorrer alteração pela Licitante)
A32: CUD - Custo Unitário Direto do Insumo (sem encargos, taxas e impostos, valor não pode ser maior que o Orçado pela Codevasf)
A33: CT - Custo Total (sem encargos, taxas e impostos) - CT = Qde x CUD
A34: FatorK - Taxa de Ressarcimento de Despesas e Encargos (detalhar composição nas Planilhas "PFP2.1", "PFP2.2", "PFP3")
A35: PU - Preço Unitário do Insumo (incluído encargos, taxas e impostos) - PU = CUD x FatorK
A36: PT - Preço Total do Insumo (incluído encargos, taxas e impostos) - PT = Qde x PU
A37: P - Profissionais nível superior nas áreas de Engenharia, Química, Arquitetura, Agronomia e Veterinária, conforme disposições da Lei 4.950-A/66
A38: S - Profissionais de nível superior nas demais áreas de atuação, incluindo Arqueólogo, Biólogo, Geógrafo e Socioólogo
A39: T - Profissionais de nível médio técnico nas diversas áreas de atuação
A40: A - Profissionais de nível médio de apoio técnico-administrativo
A41: * - Os salários dos engenheiros foram alterados proporcionalmente considerando o salário mínimo vigente a partir de 01/2023. | L41: o

Sheet Plan1 (hidden)

Sheet PFP1.1_Topo_RioParanã
A1: SERVIÇOS TOPOGRÁFICOS | G1: CODIGO:
G2: PFP-1.1
A3: NOME DA EMPRESA:
A5: PROJETO: | E5: CONTRATANTE: | G5: =PFP!J5 -> BASE: Maio/2023
A6: Ponte Rio Paranã/GO | E6: =PFP!F6 -> Codevasf (9ª SR)
A7: Cod. | B7: Base | C7: Insumos | D7: Uni | E7: Qde | F7: Preço Unitário (PU) | G7: Preço Total (PT)
A8: TP8 | B8: CODE | C8: Nivelamento Geométrico dos Eixos classe IIN | D8: km | E8: 8 | F8: 788.72 | G8: =ROUND(F8*E8,2) -> 6309.76
A9: TP9 | B9: CODE | C9: Seções Transversais (Nivelamento IIIN) | D9: km | E9: 18 | F9: 394.36 | G9: =ROUND(F9*E9,2) -> 7098.48
A10: TP16.1 | B10: CODE | C10: Poligonal classe IIP | D10: km | E10: 18 | F10: 1984.3 | G10: =ROUND(F10*E10,2) -> 35717.4
A11: A.05.000.080359 | B11: CPOS | C11: Pontos GPS de dupla frequencia (L1/L2) | D11: un | E11: 20 | F11: 1162.13 | G11: =ROUND(F11*E11,2) -> 23242.6
A12: TP23 | B12: CODE | C12: Cadastro Físico | D12: ha | E12: 500 | F12: 17.86 | G12: =ROUND(F12*E12,2) -> 8930
A13: TP24 | B13: CODE | C13: Cadastro Agrícola | D13: ha | E13: 500 | F13: 5.95 | G13: 2975
A14: TP25 | B14: CODE | C14: Cadastro Jurídico | D14: ha | E14: 500 | F14: 11.91 | G14: 5955
A15: TP26 | B15: CODE | C15: Cadastro Socioeconomico | D15: ha | E15: 500 | F15: 3.97 | G15: 1985
A16: TP21 | B16: CODE | C16: Levantamentos Topobatimétricos | D16: km | E16: 2 | F16: 1260.83 | G16: 2521.66
A17: TP20 | B17: CODE | C17: Levantamentos Ecobatimétricos | D17: ha | E17: 2 | F17: 853.31 | G17: 1706.62
A18: TP11 | B18: ED.5/2022/BSB | C18: Levantamento Planialtimetrico com RPA (VANT) | D18: ha | E18: 1300 | F18: 47.93 | G18: 62309
A19: 4707 | B19: ORSE | C19: Marco de Concreto (12x18x60cm) | D19: un | E19: =E11 -> 20 | F19: 66 | G19: =ROUND(F19*E19,2) -> 1320
A20: TP28 | B20: CODE | C20: Barrote de Madeira (10x10x50cm | D20: un | E20: 70 | F20: 28.7 | G20: 2009
A21: TP29 | B21: CODE | C21: Piquete de Madeira (2x2x20cm) | D21: un | E21: 180 | F21: 2.41 | G21: 433.8
A22: PD6 | B22: CODE | C22: Picada Manual | D22: km | E22: 4 | F22: 194.88 | G22: 779.52
A23: TOTAL SERVIÇOS TOPOGRÁFICOS | G23: =SUM(G8:G22) -> 163292.84
A24: NOME DO INFORMANTE: | F24: QUALIFICAÇÃO:
A26: ASSINATURA: | F26: DATA:
A28: OBSERVAÇÃO:
A29: Uni - unidade de medição do insumo;
A30: Qde - Quantidade do Insumo (não pode ocorrer alteração pela Licitante)
A31: PU - Preço Unitário (composições padrão da Codevasf, já incluso o FatorK)
A32: PT - Preço Total (incluído encargos, taxas e impostos) - PT = Qde x PU

Sheet PFP1.2_Geo_RioParanã
A1: SERVIÇOS GEOLÓGICOS/GEOTÉCNICOS | G1: CODIGO:
G2: PFP-1.2
A3: NOME DA EMPRESA:
A5: PROJETO: | E5: CONTRATANTE: | G5: =PFP!J5 -> BASE: Maio/2023
A6: ='PFP1.1_Topo_RioParanã'!A6 -> Ponte Rio Paranã/GO | E6: =PFP!F6 -> Codevasf (9ª SR)
A7: Cod. | B7: Base | C7: Insumos | D7: Uni | E7: Qde | F7: Preço Unitário (PU) | G7: Preço Total (PT)
A8: A.07.000.020350 | B8: CPOS | C8: Sondagem Rotativa: (Des)Mobilização | D8: un | E8: 1 | F8: 6685.52 | G8: =ROUND(F8*E8,2) -> 6685.52
A9: 01.002.0015-0 | B9: EMOP | C9: Sondagem Rotativa: Ø N em rochas | D9: m | E9: 40 | F9: 320.03 | G9: 12801.2
A10: 01.002.0003-A | B10: EMOP | C10: Sondagem Rotativa: em solo | D10: m | E10: 60 | F10: 125.15 | G10: 7509
A11: GT1.4.1 | B11: CODE | C11: Sondagem Rotativa: Desloc/Instalação 0-200 m | D11: un | E11: 7 | F11: Já incluso* | G11: -
A12: GT1.4.2 | B12: CODE | C12: Sondagem Rotativa: Desloc/Instalação 201-500 m | D12: un | E12: 1 | F12: Já incluso* | G12: -
A13: A.07.000.020476 | B13: CPOS | C13: Sondagem Percussão: (Des)Mobilização | D13: un | E13: 1 | F13: 1234.48 | G13: 1234.48
A14: A.07.000.020483 | B14: CPOS | C14: Sondagem Percussão: com SPT - Terrestre | D14: m | E14: 70 | F14: 97.2 | G14: 6804
A15: 02.02.05 | B15: SIURB | C15: Sondagem Percussão: Desloc/Instalação 0-200 m | D15: un | E15: 9 | F15: 180.52 | G15: 1624.68
A16: 02.02.06 | B16: SIURB | C16: Sondagem Percussão: Desloc/Instalação 201-500 m | D16: un | E16: 1 | F16: 270.79 | G16: 270.79
A17: A.07.000.020486 | B17: CPOS | C17: Sondagem a Trado | D17: m | E17: 40 | F17: 89.58 | G17: 3583.2
A18: GT5 | B18: CODE | C18: Poços de Inspeção | D18: m | E18: 20 | F18: 190.68 | G18: 3813.6
A19: E200340122 | B19: EMBASA | C19: Ensaio: Umidade Natural | D19: un | E19: 25 | F19: 68.87 | G19: 1721.75
A20: 01.001.0091-A | B20: EMOP | C20: Ensaio: Densidade Natural | D20: un | E20: 25 | F20: 48.94 | G20: 1223.5
A21: 11451 | B21: DER-ES | C21: Ensaio de Limites de Liquidez e Plasticidade - por amostra | D21: un | E21: 25 | F21: 166 | G21: 4150
A22: 4682 | B22: ORSE | C22: Ensaio: Granulometria por Peneiramento | D22: un | E22: 25 | F22: 150 | G22: 3750
A23: 01.07.07U | B23: COMPESA | C23: Ensaio: Granulometria por Sedimentação | D23: un | E23: 25 | F23: 124.27 | G23: 3106.75
A24: E200340125 | B24: EMBASA | C24: Ensaio: Compactação Proctor Normal | D24: un | E24: 25 | F24: 163.57 | G24: 4089.25
A25: E200340116 | B25: EMBASA | C25: Ensaio: Massa Especifica Real dos Grãos | D25: un | E25: 25 | F25: 65.78 | G25: 1644.5
A26: 97.01.18 | B26: SUDECAP | C26: Ensaio: Adensamento Oedométrico | D26: un | E26: 10 | F26: 165 | G26: =ROUND(F26*E26,2) -> 1650
A27: GT6.1.10 | B27: CODE | C27: Ensaio: Triaxial UU ñ consolidado ñ drenado | D27: un | E27: 5 | F27: 822.95 | G27: 4114.75
A28: GT6.1.11 | B28: CODE | C28: Ensaio: Triaxial CU consolidado ñ drenado | D28: un | E28: 5 | F28: 1129.48 | G28: 5647.4
A29: GT6.1.12.1 | B29: CODE | C29: Ensaio: Expansão colapsividade em anéis de adensamento | D29: un | E29: 15 | F29: 380.8 | G29: 5712
A30: GT6.1.12.2 | B30: CODE | C30: Ensaio: Determinação da pressão de expansão | D30: un | E30: 15 | F30: 300.93 | G30: 4513.95
A31: E200320120 | B31: EMBASA | C31: Ensaio: Dispersão Granulometria Comparativa | D31: un | E31: 10 | F31: 287.4 | G31: 2874
A32: E200320121 | B32: EMBASA | C32: Ensaio: Dispersão Crumb Test | D32: un | E32: 10 | F32: 122.19 | G32: 1221.9
A33: GT6.1.15 | B33: CODE | C33: Ensaio: Perda de Água 5 estágios | D33: un | E33: 10 | F33: 361.18 | G33: 3611.8
A34: GT6.1.16.1 | B34: CODE | C34: Ensaio: Análise Quimica da Areia | D34: un | E34: 10 | F34: 459.82 | G34: =ROUND(F34*E34,2) -> 4598.2
A35: GT6.1.16.2 | B35: CODE | C35: Ensaio: Mineralogia da Areia | D35: un | E35: 10 | F35: 529.2 | G35: =ROUND(F35*E35,2) -> 5292
A36: GT6.1.17 | B36: CODE | C36: Ensaio: Análise Petrográfica/Mineralogia | D36: un | E36: 10 | F36: 529.2 | G36: =ROUND(F36*E36,2) -> 5292
A37: GT6.1.18 | B37: CODE | C37: Ensaio: Abrasão “LOS ANGELES” | D37: un | E37: 10 | F37: 414.19 | G37: 4141.9
A38: GT6.1.19 | B38: CODE | C38: Ensaio: Reatividade Potencial | D38: un | E38: 10 | F38: 1382.66 | G38: 13826.6
A39: 97.01.20 | B39: SUDECAP | C39: Ensaio: Permeabilidade Vertical de Carga Variável | D39: un | E39: 20 | F39: 500 | G39: =ROUND(F39*E39,2) -> 10000
A40: 95.08.02 | B40: SUDECAP | C40: Ensaio: Retirada de Amostra Indeformada | D40: un | E40: 15 | F40: 1000 | G40: =ROUND(F40*E40,2) -> 15000
A41: GT6.1.22 | B41: CODE | C41: Ensaio de Permeabilidade "in situ" | D41: un | E41: 20 | F41: 511.58 | G41: 10231.6
A42: TOTAL SERVIÇOS GEOTÉCNICOS | G42: =SUM(G8:G41) -> 161740.32
A43: NOME DO INFORMANTE: | F43: QUALIFICAÇÃO:
A45: ASSINATURA: | F45: DATA:
A47: LEGENDA:
A48: Uni - unidade de medição do insumo;
A49: Qde - Quantidade do Insumo (não pode ocorrer alteração pela Licitante)
A50: PU - Preço Unitário (composições padrão da Codevasf, já incluso o FatorK)
A51: PT - Preço Total (incluído encargos, taxas e impostos) - PT = Qde x PU

Sheet PFP2.1_FatorKa
A1: DETALHAMENTO DOS ENCARGOS SOCIAIS: Ka | J1: CODIGO:
J2: PFP-2.1
A3: NOME DA CONSULTORA:
A5: PROJETO: | F5: CONTRATANTE: | J5: BASE: Maio/2023
A6: =PFP!A6 -> Ponte Rio Paranã /GO | F6: Codevasf (Sede)
A7: Base | B7: Cod Sicro | C7: Cod1 | D7: Cod2 | E7: Categoria / Insumo | F7: K1 | G7: K2 | H7: K3 | I7: K4 | J7: Ka | M7: ='TC_Mão de obra'!$A$1 -> Código | N7: ='TC_Mão de obra'!$B$1 -> Categoria | O7: ='TC_Mão de obra'!$C$1 -> Unid. | P7: ='TC_Mão de obra'!$D$1 -> Salário | Q7: ='TC_Mão de obra'!$O$1 -> Encargos Totais | S7: ='TC_Mão de obra'!$Q$1 -> Valor Total
A8: SICRO | B8: ='CRO1_Ins-Pro'!B4 -> P8061 | C8: MO | D8: P0 | E8: ='CRO1_Ins-Pro'!C4 -> Engenheiro Sênior (Coordenador) | F8: =Q8 -> 0.8558 | G8: =PFP3_FatorKc!$E$15 -> 0.15 | H8: =PFP3_FatorKc!$E$10 -> 0.166180758 | I8: =PFP3_FatorKc!$E$14 -> 0.1 | J8: =ROUND((1+F8+G8)*(1+H8)*(1+I8),4) -> 2.573 | M8: ='TC_Mão de obra'!$A$42 -> P8061 | N8: ='TC_Mão de obra'!$B$42 -> Engenheiro coordenador | O8: ='TC_Mão de obra'!$C$42 -> mês | P8: ='TC_Mão de obra'!$D$42 -> 16918.6 | Q8: ='TC_Mão de obra'!$O$42 -> 0.8558 | R8: ='TC_Mão de obra'!$P$42 -> 14478.88 | S8: ='TC_Mão de obra'!$Q$42 -> 31397.48
A9: SICRO | B9: ='CRO1_Ins-Pro'!B5 -> P8067 | C9: MO | D9: P1 | E9: ='CRO1_Ins-Pro'!C5 -> Engenheiro Sênior – Projetista Ponte | F9: =Q9 -> 0.8661 | G9: =PFP3_FatorKc!$E$15 -> 0.15 | H9: =PFP3_FatorKc!$E$10 -> 0.166180758 | I9: =PFP3_FatorKc!$E$14 -> 0.1 | J9: 2.5863 | M9: ='TC_Mão de obra'!$A$48 -> P8067 | N9: ='TC_Mão de obra'!$B$48 -> Engenheiro de projetos sênior | O9: ='TC_Mão de obra'!$C$48 -> mês | P9: ='TC_Mão de obra'!$D$48 -> 14506.03 | Q9: ='TC_Mão de obra'!$O$48 -> 0.8661 | R9: ='TC_Mão de obra'!$P$48 -> 12563.94 | S9: ='TC_Mão de obra'!$Q$48 -> 27069.97
A10: SICRO | B10: ='CRO1_Ins-Pro'!B6 -> P8066 | C10: MO | D10: P2 | E10: ='CRO1_Ins-Pro'!C6 -> Engenheiro Pleno – Projetista Estrada | F10: 0.8863 | G10: =PFP3_FatorKc!$E$15 -> 0.15 | H10: =PFP3_FatorKc!$E$10 -> 0.166180758 | I10: =PFP3_FatorKc!$E$14 -> 0.1 | J10: 2.6122 | M10: ='TC_Mão de obra'!$A$47 -> P8066 | N10: ='TC_Mão de obra'!$B$47 -> Engenheiro de projetos pleno | O10: ='TC_Mão de obra'!$C$47 -> mês | P10: ='TC_Mão de obra'!$D$47 -> 11294.64 | Q10: ='TC_Mão de obra'!$O$47 -> 0.8863 | R10: ='TC_Mão de obra'!$P$47 -> 10010.57 | S10: ='TC_Mão de obra'!$Q$47 -> 21305.21
A11: SICRO | B11: ='CRO1_Ins-Pro'!B7 -> P8058 | C11: MO | D11: P2 | E11: ='CRO1_Ins-Pro'!C7 -> Engenheiro Pleno – Ambiental | F11: 0.8821 | G11: =PFP3_FatorKc!$E$15 -> 0.15 | H11: =PFP3_FatorKc!$E$10 -> 0.166180758 | I11: =PFP3_FatorKc!$E$14 -> 0.1 | J11: 2.6068 | M11: ='TC_Mão de obra'!$A$39 -> P8058 | N11: ='TC_Mão de obra'!$B$39 -> Engenheiro ambiental pleno | O11: ='TC_Mão de obra'!$C$39 -> mês | P11: ='TC_Mão de obra'!$D$39 -> 12074.42 | Q11: ='TC_Mão de obra'!$O$39 -> 0.8821 | R11: ='TC_Mão de obra'!$P$39 -> 10651.09 | S11: ='TC_Mão de obra'!$Q$39 -> 22725.51
A12: SICRO | B12: ='CRO1_Ins-Pro'!B8 -> P8135 | C12: MO | D12: A1 | E12: ='CRO1_Ins-Pro'!C8 -> Administrativo (Secretariado) | F12: 1.4521 | G12: =PFP3_FatorKc!$E$15 -> 0.15 | H12: =PFP3_FatorKc!$E$10 -> 0.166180758 | I12: =PFP3_FatorKc!$E$14 -> 0.1 | J12: 3.338 | M12: ='TC_Mão de obra'!$A$77 -> P8135 | N12: ='TC_Mão de obra'!$B$77 -> Secretária | O12: ='TC_Mão de obra'!$C$77 -> mês | P12: ='TC_Mão de obra'!$D$77 -> 2364.31 | Q12: ='TC_Mão de obra'!$O$77 -> 1.4521 | R12: ='TC_Mão de obra'!$P$77 -> 3433.28 | S12: ='TC_Mão de obra'!$Q$77 -> 5797.59
A14: NOME DO INFORMANTE: | J14: QUALIFICAÇÃO
A16: ASSINATURA: | J16: DATA:
A18: OBSERVAÇÃO:
A19: Alocar os Insumos MO, com respectivo FatorK, dentro da categoria de vínculo contratual (com ou sem) de cada tipo de profissional
A20: K1 - Encargos Sociais - Valores obtidos do Relatório de Consolidação dos Custos de Mão de obra do SICRO (Tabela 1 - Consolidação dos custos de mão de obra - Tabela de Preços de Consultoria - mês de referência: janeiro 2023
A22: K2 - Custos da Administração Central
A23: K3 - Despesas Fiscais - 16,62
A24: K4 - Remuneração da empresa (LUCRO)
A25: Ka - Taxa de Ressarcimento de Despesas e Encargos sobre a Mão de Obra COM VINCULO (incide apenas no Insumo Codigo M.O.)
A26: Ka = (1 + K1 + K2) x (1 + K3) x (1 + K4)

Sheet PFP2.2_FatorKb (hidden)
A1: DETALHAMENTO DOS ENCARGOS SOCIAIS: Kb | F1: CODIGO:
F2: PFP-3
A3: NOME DA CONSULTORA:
A5: PROJETO: | C5: CONTRATANTE: | F5: ='PFP2.1_FatorKa'!J5 -> BASE: Maio/2023
A6: =PFP!A6 -> Ponte Rio Paranã /GO | C6: =PFP!F6 -> Codevasf (9ª SR)
A7: DISCRIMINAÇÃO | E7: VALORES
E8: % | F8: R$
A9: A | B9: ENCARGOS SOCIAIS BÁSICOS | E9: =ROUND(SUM(E10:E18),4) -> 0.2 | F9: =ROUND(E9*PFP!$H$19,2) -> 41252.72
A10: A1 | B10: Seconci | E10: 0 | F10: =ROUND(E10*PFP!$H$19,2) -> 0
A11: A2 | B11: INSS | E11: 0.2 | F11: =ROUND(E11*PFP!$H$19,2) -> 41252.72
A12: A3 | B12: FGTS | E12: 0 | F12: =ROUND(E12*PFP!$H$19,2) -> 0
A13: A4 | B13: Incra | E13: 0 | F13: =ROUND(E13*PFP!$H$19,2) -> 0
A14: A5 | B14: Salário Educação | E14: 0 | F14: =ROUND(E14*PFP!$H$19,2) -> 0
A15: A6 | B15: Sebrae | E15: 0 | F15: =ROUND(E15*PFP!$H$19,2) -> 0
A16: A7 | B16: Seguro contra acidente | E16: 0 | F16: =ROUND(E16*PFP!$H$19,2) -> 0
A17: A8 | B17: Senai | E17: 0 | F17: =ROUND(E17*PFP!$H$19,2) -> 0
A18: A9 | B18: Sesi | E18: 0 | F18: =ROUND(E18*PFP!$H$19,2) -> 0
A19: B | B19: ENCARGOS SOCIAIS QUE RECEBEM INCIDÊNCIA DE "A" | E19: =ROUND(SUM(E20:E26),4) -> 0 | F19: =ROUND(E19*PFP!$H$19,2) -> 0
A20: B1 | B20: 13º Salário | E20: 0 | F20: =ROUND(E20*PFP!$H$19,2) -> 0
A21: B2 | B21: Auxilio Enfermidade | E21: 0 | F21: =ROUND(E21*PFP!$H$19,2) -> 0
A22: B3 | B22: Licença Paternidade | E22: 0 | F22: =ROUND(E22*PFP!$H$19,2) -> 0
A23: B4 | B23: Faltas Justificadas | E23: 0 | F23: =ROUND(E23*PFP!$H$19,2) -> 0
A24: B5 | B24: Auxílio Acidente de Trabalho | E24: 0 | F24: =ROUND(E24*PFP!$H$19,2) -> 0
A25: B6 | B25: Férias Gozadas | E25: 0 | F25: =ROUND(E25*PFP!$H$19,2) -> 0
A26: B7 | B26: Salário Maternidade | E26: 0 | F26: =ROUND(E26*PFP!$H$19,2) -> 0
A27: C | B27: ENCARGOS SOCIAIS QUE NÃO RECEBEM INCIDÊNCIA DE "A" | E27: =ROUND(SUM(E28:E32),4) -> 0 | F27: =ROUND(E27*PFP!$H$19,2) -> 0
A28: C1 | B28: Aviso Prévio Indenizado | E28: 0 | F28: =ROUND(E28*PFP!$H$19,2) -> 0
A29: C2 | B29: Aviso Prévio Trabalhado | E29: 0 | F29: =ROUND(E29*PFP!$H$19,2) -> 0
A30: C3 | B30: Férias Indenizadas | E30: 0 | F30: =ROUND(E30*PFP!$H$19,2) -> 0
A31: C4 | B31: Depósito Rescisão Sem Justa Causa | E31: 0 | F31: =ROUND(E31*PFP!$H$19,2) -> 0
A32: C5 | B32: Indenização Adicional | E32: 0 | F32: =ROUND(E32*PFP!$H$19,2) -> 0
A33: D | B33: REINCIDÊNCIAS | E33: =ROUND(SUM(E34:E35),4) -> 0 | F33: =ROUND(E33*PFP!$H$19,2) -> 0
A34: D1 | B34: Reincidência de "A" sobre "B" | E34: =ROUND(E9*E19,4) -> 0 | F34: =ROUND(E34*PFP!$H$19,2) -> 0
A35: D2 | B35: Reincidência de "A" sobre Aviso Prévio Trabalhado e reincidência do FGTS sobre Aviso Prévio Indenizado | E35: =ROUND(E9*E29,4)+ROUND(E28*E12,4) -> 0 | F35: =ROUND(E35*PFP!$H$19,2) -> 0
A36: K1 | B36: ENCARGOS SOCIAIS | E36: =ROUND(E9+E19+E27+E33,4) -> 0.2 | F36: =ROUND(E36*PFP!$H$19,2) -> 41252.72
A37: Kb | B37: TAXA DE RESSARCIMENTO DE DESPESAS E ENCARGOS SOBRE MO SV | E37: =ROUND((1+E36+PFP3_FatorKc!E15)*(1+PFP3_FatorKc!E14)*(1+PFP3_FatorKc!E10),4) -> 1.7318
A38: NOME DO INFORMANTE: | E38: QUALIFICAÇÃO
A40: ASSINATURA: | E40: DATA:
A42: OBSERVAÇÃO:
A43: 1 - DISCRIMINAR OS ENCARGOS SOCIAIS COM SEUS RESPECTIVOS PERCENTUAS TOTALIZANDO OS MESMOS.
A44: 2 - APLICAR O % TOTAL P/ CALCULAR OS E. SOCIAIS INCIDENTES NA MÃO-DE-OBRA SEM VÍNCULO PERMANENTE
A45: Kb - Taxa de Ressarcimento de Despesas e Encargos sobre a Mão de Obra SEM VINCULO (incide apenas no Insumo Codigo M.O.)
A46: Kb = (1 + K1 + K2) x (1 + K3) x (1 + K4)

Sheet PFP3_FatorKc
A1: DESPESAS FISCAIS E CUSTOS DIVERSOS: Kc | F1: CODIGO:
F2: PFP-3
A3: NOME DA CONSULTORA:
A5: PROJETO: | C5: CONTRATANTE: | F5: =PFP!J5 -> BASE: Maio/2023
A6: =PFP!A6 -> Ponte Rio Paranã /GO | C6: =PFP!F6 -> Codevasf (9ª SR)
A7: DISCRIMINAÇÃO 1 | D7: VALORES
D8: % preço | E8: % custo | F8: R$
A9: K4 | B9: DESPESAS FISCAIS | D9: K' (%)2 | E9: K (%)3
D10: =ROUND(D11+D12+D13,4) -> 0.1425 | E10: =E11+E12+E13 -> 0.166180758
A11: 1 | B11: ISS | D11: 0.05 | E11: =(1/(1-$D$10))*D11 -> 0.0583090379
A12: 2 | B12: PIS | D12: 0.0165 | E12: =(1/(1-$D$10))*D12 -> 0.01924198251
A13: 3 | B13: COFINS | D13: 0.076 | E13: =(1/(1-$D$10))*D13 -> 0.08862973761
A14: K3 | B14: REMUNERAÇÃO DA EMPRESA (LUCRO) | E14: 0.1
A15: K2 | B15: CUSTOS DA ADMINISTRAÇÃO CENTRAL | E15: =ROUND(SUM(E16:E18),4) -> 0.15
A16: 4 | B16: Custos da administração central da empresa (diretoria, pessoal técnico de apoio e pessoal administrativo não diretamente vinculado à prestação dos serviços) | E16: 0.1
A17: 5 | B17: Outras despesas que afetam o custo de produção como treinamento, biblioteca, programa de qualidade, programa de benefícios, auditoria interna e externa | E17: 0.03
A18: 6 | B18: Despesas fixas e variaveis com patrimônio, aluguéis, comunicação, manutenção e transporte não diretamente relacionados com o custo direto dos serviços | E18: 0.02
A19: Kc | B19: TAXA RESSARCIMENTO DE DESPESAS SOBRE CUSTOS DIVERSOS | E19: =ROUND((1+E14)*(1+E10),4) -> 1.2828
A20: NOME DO INFORMANTE: | E20: QUALIFICAÇÃO:
A22: ASSINATURA: | E22: DATA:
A24: Observação:
A25: 1 - RELACIONAR OS CUSTOS DE ADMINISTRAÇÃO COM RESPECTIVOS PERCENTUAIS INCIDENTES NA MÃO -DE-OBRA
A26: 1 - DISCRIMINAR OS TRIBUTOS QUE INCIDEM SOBRE OS CUSTOS DA PRESTAÇÃO DOS SERVIÇOS
A27: 2 - K4 = INDICAR % DE CADA TRIBUTO E A SOMA DOS MESMOS
A28: 3 - PIS e COFINS, Regime de Incidencia Acumulativa ou em Regime de Incidencia Não Acumulativa de acordo com a forma de apuração do lucro no IRPJ. APRESENTAR COMPROVANTES de aproveitamento de créditos tributários dos últimos 12 meses em caso de aplicação de "percentual de desconto".
A29: 4 - AS DESPESAS FISCAIS (K4) INCIDEM SOBRE O TOTAL DA FATURA E NÃO SOBRE OS CUSTOS INCORRIDOS,
A30: DEVENDO SER CALCULADO O K4' APLICANDO-SE A SEGUINTE FÓRMULA:
A31: K4' = { [ 1 / ( 1 - K4) ] - 1 } x 100
A32: =CONCATENATE(" K4' = { [ 1 / ( 1 - ",D10," ) ] - 1 } x 100") -> K4' = { [ 1 / ( 1 - 0,1425 ) ] - 1 } x 100
A33: Kc - Taxa de Ressarcimento de Despesas sobre Custos Diversos (incide sobre os Insumos Codigo DP e ME)
A34: Kc = (1 + K3) x (1 + K4)
A35: K2 - Incide sobre o Custo Total (CT) da Mão de Obra (MO)
A36: K3 - Incide sobre o Custo Total (CT) Mão de Obra com encargos (MO x Ka ou Kb), demais Custos (DP e EQ), e Custos da Administração Central (K2)
A37: K4 - Incide sobre o Custo Total (CT) Mão de Obra com encargos (MO x Ka ou Kb), demais Custos (DP e EQ), e Custos da Administração Central (K2) e Lucro (K3)
A1048576: ISS- O ISS informado na proposta da licitante deve corresponder ao seu domicílio fiscal.

Sheet CRO1_Ins-Pro
A1: INSUMOS POR ETAPA/PRODUTO | H1: CODIGO:
H2: CRO-1
A3: Cod1 | B3: Cod2 | C3: Categoria / Insumo | D3: Uni | E3: Qde | F3: CUD | G3: PU | H3: FatorK | I3: 1. EP | J3: 2. LP. com RPA. | K3: 3. EVTEA | L3: 4. Est. Geo. e Top. | M3: 5. PB
A4: SICRO | B4: P8061 | C4: Engenheiro Sênior (Coordenador) | D4: mês | E4: =SUM(I4:M4) -> 7 | F4: =PFP!G8 -> 16918.6 | G4: =PFP!H8 -> 43531.56 | H4: =PFP!I8 -> 2.573 | I4: 2 | J4: 0 | K4: 2 | L4: 0 | M4: 3
A5: SICRO | B5: P8067 | C5: Engenheiro Sênior – Projetista Ponte | D5: mês | E5: 2 | F5: =PFP!G9 -> 14506.03 | G5: =PFP!H9 -> 37516.95 | H5: =PFP!I9 -> 2.5863 | I5: 0 | J5: 0 | K5: 0 | L5: 0 | M5: 2
A6: SICRO | B6: P8066 | C6: Engenheiro Pleno – Projetista Estrada | D6: mês | E6: 1.5 | F6: =PFP!G10 -> 11294.64 | G6: =PFP!H10 -> 29503.86 | H6: =PFP!I10 -> 2.6122 | I6: 0 | J6: 0 | K6: 0.5 | L6: 0 | M6: 1
A7: SICRO | B7: P8058 | C7: Engenheiro Pleno – Ambiental | D7: mês | E7: 1.5 | F7: =PFP!G11 -> 12074.42 | G7: =PFP!H11 -> 31475.6 | H7: =PFP!I11 -> 2.6068 | I7: 1 | J7: 0 | K7: 0.5 | L7: 0 | M7: 0
A8: SICRO | B8: P8135 | C8: Administrativo (Secretariado) | D8: mês | E8: 7 | F8: =PFP!G12 -> 2364.31 | G8: =PFP!H12 -> 7892.07 | H8: =PFP!I12 -> 3.338 | I8: 2 | J8: 0 | K8: 2 | L8: 0 | M8: 3
A9: CODE | B9: V1 | C9: Diárias | D9: dia | E9: 13 | F9: =PFP!G13 -> 268 | G9: =PFP!H13 -> 343.79 | H9: =PFP!I13 -> 1.2828 | I9: 7 | J9: 0 | K9: 0 | L9: 0 | M9: 6
A10: PROP | B10: E8891 | C10: Pick-up Cab. Dupla 2.8 4x4 Diesel | D10: dia | E10: 7 | F10: =PFP!G14 -> 322.11 | G10: =PFP!H14 -> 413.2 | H10: =PFP!I14 -> 1.2828 | I10: 5 | J10: 0 | K10: 0 | L10: 0 | M10: 2
A11: CODE | B11: M4 | C11: Relatório Final | D11: un | E11: 1 | F11: =PFP!G15 -> 1478.8 | G11: =PFP!H15 -> 1897 | H11: =PFP!I15 -> 1.2828 | I11: 0 | J11: 0 | K11: 0 | L11: 0 | M11: 1
A12: CODE | B12: ED.5/2022/BSB | C12: Levantamento Planialtimetrico com RPA (VANT) | D12: ha | E12: 1300 | F12: - | G12: =PFP!H16 -> 47.93 | H12: - | I12: 0 | J12: 1300 | K12: 0 | L12: 0 | M12: 0
A13: CODE | B13: TP | C13: Serviços Topográficos (exceto LP com RPA) | D13: un | E13: 1 | F13: =PFP!G17 -> - | G13: =PFP!H17 -> 100983.84 | H13: - | I13: 0 | J13: 0 | K13: 0 | L13: 1 | M13: 0
A14: CODE | B14: GT | C14: Total Serviços Geotécnicos | D14: un | E14: 1 | F14: =PFP!G18 -> - | G14: =PFP!H18 -> 161740.32 | H14: - | I14: 0 | J14: 0 | K14: 0 | L14: 1 | M14: 0
A15: TOTAL | C15: VALOR POR PRODUTO | D15: R$ | E15: =SUM(I15:M15) -> 860760.33 | I15: =SUM(G4:G14*$I4:I$14) -> 138795.39 | J15: =SUM(G4:G14*$J4:J$14) -> 62309 | K15: =SUM(K4:K14*$G$4:$G$14) -> 133336.99 | L15: =SUM(L4:L14*$G$4:$G$14) -> 262724.16 | M15: =SUM(M4:M14*$G$4:$G$14) -> 263594.79
D16: % | E16: =SUM(I16:M16) -> 1 | I16: =ROUND(I15/$E$15,5) -> 0.16125 | J16: =ROUND(J15/$E$15,5) -> 0.07239 | K16: =ROUND(K15/$E$15,5) -> 0.15491 | L16: =ROUND(L15/$E$15,5) -> 0.30522 | M16: =ROUND(M15/$E$15,5) -> 0.30623
A17: OBSERVAÇÃO:
A18: P - Profissionais nível superior nas áreas de Engenharia, Química, Arquitetura, Agronomia e Veterinária, conforme disposições da Lei 4.950-A/66
A19: S - Profissionais de nível superior nas demais áreas de atuação, incluindo Arqueólogo, Biólogo, Geógrafo e Socioólogo
A20: T - Profissionais de nível médio técnico nas diversas áreas de atuação
A21: A - Profissionais de nível médio de apoio técnico-administrativo

Sheet CRO2_Ins-Mes
A1: CRONOGRAMA SIMPLIFICADO | D1: Mês
A2: Produtos | B2: Uni | C2: Qde | D2: 1 | E2: 2 | F2: 3 | G2: 4 | H2: 5 | I2: 6 | J2: 7
A3: Estudos Preliminares | B3: mês | C3: 2 | D3: 1 | E3: 1 | F3: 0 | G3: 0 | H3: 0 | I3: 0 | J3: 0
A4: Levantamento Planialtimetrico com RPA (VANT) | B4: mês | C4: 1 | D4: 0 | E4: 1 | F4: 0 | G4: 0 | H4: 0 | I4: 0 | J4: 0
A5: Estudo de Viabilidade Técnica, Econômica e Ambiental | B5: mês | C5: 2 | D5: 0 | E5: 0 | F5: 1 | G5: 1 | H5: 0 | I5: 0 | J5: 0
A6: Estudos Geotécnicos e Topográficos | B6: mês | C6: 1 | D6: 0 | E6: 0 | F6: 0 | G6: 0 | H6: 1 | I6: 0 | J6: 0
A7: Projeto Básico | B7: mês | C7: 3 | D7: 0 | E7: 0 | F7: 0 | G7: 0 | H7: 1 | I7: 1 | J7: 1

Sheet TC_Mão de obra
A1: Código | B1: Categoria | C1: Unid. | D1: Salário | E1: Encargos Sociais | G1: Encargos Complementares | L1: Encargos Adicionais | O1: Encargos Totais | Q1: Valor Total | S1: Salário
D2: 1302 | G2: Alimentação | H2: EPI | I2: Ferramenta | J2: Transporte | K2: Exame Ocupacional | L2: Cesta Básica | M2: Assistência Médica | N2: Seguro de Vida
D3: R$ | E3: % | F3: R$ | G3: R$ | H3: R$ | I3: R$ | J3: R$ | K3: R$ | L3: R$ | M3: R$ | N3: R$ | O3: % | P3: R$ | Q3: R$
A5: P8001 | B5: Advogado júnior | C5: mês | D5: =ROUND($D$2*T5,2) ->  | E5: 0.798 | F5: =ROUND(D5*E5,2) ->  | G5: 578.44 | H5: 38.38 | I5: 0 | J5: 0 | K5: 3.2 | L5: 0 | M5: 303.64 | N5: 9.98 | O5: =ROUND((Q5-D5)/D5,4) ->  | P5: =SUM(F5:N5) ->  | Q5: =D5+P5 ->  | S5: 4254.47 | T5: =ROUND(S5/$S$2,1) -> 
A6: P8002 | B6: Advogado pleno | C6: mês | D6: =ROUND($D$2*T6,2) ->  | E6: 0.798 | F6: =ROUND(D6*E6,2) ->  | G6: 578.44 | H6: 38.38 | I6: 0 | J6: 0 | K6: 3.2 | L6: 0 | M6: 303.64 | N6: 9.98 | O6: =ROUND((Q6-D6)/D6,4) ->  | P6: =SUM(F6:N6) ->  | S6: 5672.62 | T6: =ROUND(S6/$S$2,1) -> 
A7: P8003 | B7: Advogado sênior | C7: mês | E7: 0.798 | G7: 578.44 | H7: 38.38 | I7: 0 | J7: 0 | K7: 3.2 | L7: 0 | M7: 303.64 | N7: 9.98 | S7: 9701.72
A8: P8007 | B8: Analista de desenvolvimento de sistemas júnior | C8: mês | E8: 0.7965 | G8: 578.44 | H8: 0 | I8: 0 | J8: 7.88 | K8: 3.35 | L8: 0 | M8: 303.64 | N8: 9.98 | S8: 3519.26
A9: P8008 | B9: Analista de desenvolvimento de sistemas pleno | C9: mês | E9: 0.7965 | G9: 578.44 | H9: 0 | I9: 0 | J9: 0 | K9: 3.35 | L9: 0 | M9: 303.64 | N9: 9.98 | S9: 4692.35
A10: P8009 | B10: Analista de desenvolvimento de sistemas sênior | C10: mês | E10: 0.7965 | G10: 578.44 | H10: 0 | I10: 0 | J10: 0 | K10: 3.35 | L10: 0 | M10: 303.64 | N10: 9.98 | S10: 8422
A11: P8013 | B11: Arquiteto júnior | C11: mês | E11: 0.7949 | G11: 578.44 | H11: 38.38 | I11: 0 | J11: 0 | K11: 2.61 | L11: 0 | M11: 303.64 | N11: 9.98 | S11: 10302
A12: P8014 | B12: Arquiteto pleno | C12: mês | E12: 0.7949 | G12: 578.44 | H12: 38.38 | I12: 0 | J12: 0 | K12: 2.61 | L12: 0 | M12: 303.64 | N12: 9.98 | S12: 11132.43
A13: P8015 | B13: Arquiteto sênior | C13: mês | E13: 0.7949 | G13: 578.44 | H13: 38.38 | I13: 0 | J13: 0 | K13: 2.61 | L13: 0 | M13: 303.64 | N13: 9.98 | S13: 13602.02
A14: P8019 | B14: Assistente social júnior | C14: mês | E14: 0.804 | G14: 578.44 | H14: 38.38 | I14: 0 | J14: 72.68 | K14: 4.59 | L14: 0 | M14: 303.64 | N14: 9.98 | S14: 2439.23
A15: P8020 | B15: Assistente social pleno | C15: mês | E15: 0.804 | G15: 578.44 | H15: 38.38 | I15: 0 | J15: 23.89 | K15: 4.59 | L15: 0 | M15: 303.64 | N15: 9.98 | S15: 3252.31
A16: P8021 | B16: Assistente social sênior | C16: mês | E16: 0.804 | G16: 578.44 | H16: 38.38 | I16: 0 | J16: 0 | K16: 4.59 | L16: 0 | M16: 303.64 | N16: 9.98 | S16: 5653.49
A17: P8025 | B17: Auxiliar | C17: mês | E17: 0.807 | G17: 578.44 | H17: 0 | I17: 2.48 | J17: 136.88 | K17: 3.41 | L17: 0 | M17: 303.64 | N17: 9.98 | S17: 1369.28
A18: P8026 | B18: Auxiliar administrativo | C18: mês | E18: 0.8037 | G18: 578.44 | H18: 0 | I18: 0 | J18: 120.48 | K18: 4.32 | L18: 0 | M18: 303.64 | N18: 9.98 | S18: 1642.53
A19: P8027 | B19: Auxiliar de laboratório | C19: mês | E19: 0.8018 | G19: 578.44 | H19: 0 | I19: 5.06 | J19: 126.78 | K19: 3.64 | L19: 0 | M19: 303.64 | N19: 9.98 | S19: 1537.49
A20: P8028 | B20: Auxiliar de topografia | C20: mês | E20: 0.8024 | G20: 578.44 | H20: 44.73 | I20: 2.13 | J20: 136.88 | K20: 4.3 | L20: 0 | M20: 303.64 | N20: 9.98 | S20: 1369.28
A21: P8032 | B21: Biólogo júnior | C21: mês | E21: 0.7976 | G21: 578.44 | H21: 38.38 | I21: 0 | J21: 42.01 | K21: 3.31 | L21: 0 | M21: 303.64 | N21: 9.98 | S21: 2950.28
A22: P8033 | B22: Biólogo pleno | C22: mês | E22: 0.7976 | G22: 578.44 | H22: 38.38 | I22: 0 | J22: 0 | K22: 3.31 | L22: 0 | M22: 303.64 | N22: 9.98 | S22: 3933.71
A23: P8034 | B23: Biólogo sênior | C23: mês | E23: 0.7976 | G23: 578.44 | H23: 38.38 | I23: 0 | J23: 0 | K23: 3.31 | L23: 0 | M23: 303.64 | N23: 9.98 | S23: 6600.35
A24: P8038 | B24: Chefe de escritório | C24: mês | E24: 0.7991 | G24: 578.44 | H24: 0 | I24: 0 | J24: 5.82 | K24: 3.27 | L24: 0 | M24: 303.64 | N24: 9.98 | S24: 3553.55
A25: P8040 | B25: Contador júnior | C25: mês | E25: 0.7985 | G25: 578.44 | H25: 0 | I25: 0 | J25: 0 | K25: 3.04 | L25: 0 | M25: 303.64 | N25: 9.98 | S25: 3694.26
A26: P8041 | B26: Contador pleno | C26: mês | E26: 0.7985 | G26: 578.44 | H26: 0 | I26: 0 | J26: 0 | K26: 3.04 | L26: 0 | M26: 303.64 | N26: 9.98 | S26: 4925.68
A27: P8042 | B27: Contador sênior | C27: mês | E27: 0.7985 | G27: 578.44 | H27: 0 | I27: 0 | J27: 0 | K27: 3.04 | L27: 0 | M27: 303.64 | N27: 9.98 | S27: 9121.96
A28: P8044 | B28: Coordenador ambiental | C28: mês | E28: 0.7951 | G28: 578.44 | H28: 0 | I28: 0 | J28: 0 | K28: 2.74 | L28: 0 | M28: 303.64 | N28: 9.98 | S28: 14563.83
A29: P8045 | B29: Economista júnior | C29: mês | E29: 0.7953 | G29: 578.44 | H29: 0 | I29: 0 | J29: 0 | K29: 2.71 | L29: 0 | M29: 303.64 | N29: 9.98 | S29: 4428.36
A30: P8046 | B30: Economista pleno | C30: mês | E30: 0.7953 | G30: 578.44 | H30: 0 | I30: 0 | J30: 0 | K30: 2.71 | L30: 0 | M30: 303.64 | N30: 9.98 | S30: 5904.48
A31: P8047 | B31: Economista sênior | C31: mês | E31: 0.7953 | G31: 578.44 | H31: 0 | I31: 0 | J31: 0 | K31: 2.71 | L31: 0 | M31: 303.64 | N31: 9.98 | S31: 10631
A32: P8051 | B32: Engenheiro agrimensor/Geógrafo júnior | C32: mês | E32: 0.7961 | G32: 578.44 | H32: 38.38 | I32: 0 | J32: 0 | K32: 3.11 | L32: 0 | M32: 303.64 | N32: 9.98 | S32: 10302
A33: P8052 | B33: Engenheiro agrimensor/Geógrafo pleno | C33: mês | E33: 0.7961 | G33: 578.44 | H33: 38.38 | I33: 0 | J33: 0 | K33: 3.11 | L33: 0 | M33: 303.64 | N33: 9.98 | S33: 10710.21
A34: P8053 | B34: Engenheiro agrimensor/Geógrafo sênior | C34: mês | E34: 0.7961 | G34: 578.44 | H34: 38.38 | I34: 0 | J34: 0 | K34: 3.11 | L34: 0 | M34: 303.64 | N34: 9.98 | S34: 13406.36
A35: P8054 | B35: Engenheiro agrônomo júnior | C35: mês | E35: 0.791 | G35: 578.44 | H35: 38.38 | I35: 0 | J35: 0 | K35: 2.19 | L35: 0 | M35: 303.64 | N35: 9.98 | S35: 10302
A36: P8055 | B36: Engenheiro agrônomo pleno | C36: mês | E36: 0.791 | G36: 578.44 | H36: 38.38 | I36: 0 | J36: 0 | K36: 2.19 | L36: 0 | M36: 303.64 | N36: 9.98 | S36: 10635.6
A37: P8056 | B37: Engenheiro agrônomo sênior | C37: mês | E37: 0.791 | G37: 578.44 | H37: 38.38 | I37: 0 | J37: 0 | K37: 2.19 | L37: 0 | M37: 303.64 | N37: 9.98 | S37: 12472.53
A38: P8057 | B38: Engenheiro ambiental júnior | C38: mês | E38: 0.7981 | G38: 578.44 | H38: 38.38 | I38: 0 | J38: 0 | K38: 3.06 | L38: 0 | M38: 303.64 | N38: 9.98 | S38: 10302
A39: P8058 | B39: Engenheiro ambiental pleno | C39: mês | D39: 12074.42 | E39: 0.7968 | F39: 9620.9 | G39: 677.01 | H39: 38.08 | I39: 0 | J39: 0 | K39: 3.37 | L39: 0 | M39: 301.75 | N39: 9.98 | O39: 0.8821 | P39: 10651.09 | Q39: 22725.51
A40: P8059 | B40: Engenheiro ambiental sênior | C40: mês | E40: 0.7981 | G40: 578.44 | H40: 38.38 | I40: 0 | J40: 0 | K40: 3.06 | L40: 0 | M40: 303.64 | N40: 9.98 | S40: 13227.15
A41: P8060 | B41: Engenheiro consultor especial | C41: mês | E41: 0.7965 | G41: 578.44 | H41: 35.05 | I41: 0 | J41: 0 | K41: 3.36 | L41: 0 | M41: 303.64 | N41: 9.98 | S41: 20307.2
A42: P8061 | B42: Engenheiro coordenador | C42: mês | D42: 16918.6 | E42: 0.7951 | F42: 13451.98 | G42: 677.01 | H42: 34.78 | I42: 0 | J42: 0 | K42: 3.38 | L42: 0 | M42: 301.75 | N42: 9.98 | O42: 0.8558 | P42: 14478.88 | Q42: 31397.48
A43: P8062 | B43: Engenheiro de pesca júnior | C43: mês | E43: 0.7974 | G43: 578.44 | H43: 38.38 | I43: 0 | J43: 0 | K43: 3.1 | L43: 0 | M43: 303.64 | N43: 9.98 | S43: 10302
A44: P8063 | B44: Engenheiro de pesca pleno | C44: mês | E44: 0.7974 | G44: 578.44 | H44: 38.38 | I44: 0 | J44: 0 | K44: 3.1 | L44: 0 | M44: 303.64 | N44: 9.98 | S44: 10388
A45: P8064 | B45: Engenheiro de pesca sênior | C45: mês | E45: 0.7974 | G45: 578.44 | H45: 38.38 | I45: 0 | J45: 0 | K45: 3.1 | L45: 0 | M45: 303.64 | N45: 9.98 | S45: 11234.9
A46: P8065 | B46: Engenheiro de projetos júnior | C46: mês | E46: 0.7965 | G46: 578.44 | H46: 38.38 | I46: 0 | J46: 0 | K46: 3.36 | L46: 0 | M46: 303.64 | N46: 9.98 | S46: 10302
A47: P8066 | B47: Engenheiro de projetos pleno | C47: mês | D47: 11294.64 | E47: 0.7951 | F47: 8980.37 | G47: 677.01 | H47: 38.08 | I47: 0 | J47: 0 | K47: 3.38 | L47: 0 | M47: 301.75 | N47: 9.98 | O47: 0.8863 | P47: 10010.57 | Q47: 21305.21
A48: P8067 | B48: Engenheiro de projetos sênior | C48: mês | D48: 14506.03 | E48: 0.7951 | F48: 11533.74 | G48: 677.01 | H48: 38.08 | I48: 0 | J48: 0 | K48: 3.38 | L48: 0 | M48: 301.75 | N48: 9.98 | O48: 0.8661 | P48: 12563.94 | Q48: 27069.97
A49: P8068 | B49: Engenheiro florestal júnior | C49: mês | E49: 0.7974 | G49: 578.44 | H49: 38.38 | I49: 0 | J49: 0 | K49: 3.1 | L49: 0 | M49: 303.64 | N49: 9.98 | S49: 10302
A50: P8069 | B50: Engenheiro florestal pleno | C50: mês | E50: 0.7974 | G50: 578.44 | H50: 38.38 | I50: 0 | J50: 0 | K50: 3.1 | L50: 0 | M50: 303.64 | N50: 9.98 | S50: 10388
A51: P8070 | B51: Engenheiro florestal sênior | C51: mês | E51: 0.7974 | G51: 578.44 | H51: 38.38 | I51: 0 | J51: 0 | K51: 3.1 | L51: 0 | M51: 303.64 | N51: 9.98 | S51: 11234.9
A52: P8080 | B52: Geólogo júnior | C52: mês | E52: 0.7998 | G52: 578.44 | H52: 38.4 | I52: 0 | J52: 0 | K52: 3.44 | L52: 0 | M52: 303.64 | N52: 9.98 | S52: 10302
A53: P8081 | B53: Geólogo pleno | C53: mês | E53: 0.7998 | G53: 578.44 | H53: 38.4 | I53: 0 | J53: 0 | K53: 3.44 | L53: 0 | M53: 303.64 | N53: 9.98 | S53: 11412.28
A54: P8082 | B54: Geólogo sênior | C54: mês | E54: 0.7998 | G54: 578.44 | H54: 38.4 | I54: 0 | J54: 0 | K54: 3.44 | L54: 0 | M54: 303.64 | N54: 9.98 | S54: 15023.01
A55: P8086 | B55: Historiador/Sociólogo júnior | C55: mês | E55: 0.7958 | G55: 578.44 | H55: 38.39 | I55: 0 | J55: 36.8 | K55: 2.89 | L55: 0 | M55: 303.64 | N55: 9.98 | S55: 3037.21
A56: P8087 | B56: Historiador/Sociólogo pleno | C56: mês | E56: 0.7958 | G56: 578.44 | H56: 38.39 | I56: 0 | J56: 0 | K56: 2.89 | L56: 0 | M56: 303.64 | N56: 9.98 | S56: 4049.61
A57: P8088 | B57: Historiador/Sociólogo sênior | C57: mês | E57: 0.7958 | G57: 578.44 | H57: 38.39 | I57: 0 | J57: 0 | K57: 2.89 | L57: 0 | M57: 303.64 | N57: 9.98 | S57: 6930.09
A58: P8092 | B58: Jornalista júnior | C58: mês | E58: 0.7973 | G58: 578.44 | H58: 39.82 | I58: 0 | J58: 63.11 | K58: 2.98 | L58: 0 | M58: 303.64 | N58: 9.98 | S58: 2598.78
A59: P8093 | B59: Jornalista pleno | C59: mês | E59: 0.7973 | G59: 578.44 | H59: 39.82 | I59: 0 | J59: 11.13 | K59: 2.98 | L59: 0 | M59: 303.64 | N59: 9.98 | S59: 3465.04
A60: P8094 | B60: Jornalista sênior | C60: mês | E60: 0.7973 | G60: 578.44 | H60: 39.82 | I60: 0 | J60: 0 | K60: 2.98 | L60: 0 | M60: 303.64 | N60: 9.98 | S60: 6789.9
A61: P8098 | B61: Laboratorista | C61: mês | E61: 0.8018 | G61: 578.44 | H61: 43.11 | I61: 0 | J61: 96.03 | K61: 3.64 | L61: 0 | M61: 303.64 | N61: 9.98 | S61: 2049.98
A62: P8102 | B62: Médico veterinário | C62: mês | E62: 0.7935 | G62: 578.44 | H62: 38.38 | I62: 0 | J62: 0 | K62: 3 | L62: 0 | M62: 303.64 | N62: 9.98 | S62: 10302
A63: P8106 | B63: Meteorologista júnior | C63: mês | E63: 0.7984 | G63: 578.44 | H63: 39.82 | I63: 0 | J63: 0 | K63: 3.17 | L63: 0 | M63: 303.64 | N63: 9.98 | S63: 4398.35
A64: P8107 | B64: Meteorologista pleno | C64: mês | E64: 0.7984 | G64: 578.44 | H64: 39.82 | I64: 0 | J64: 0 | K64: 3.17 | L64: 0 | M64: 303.64 | N64: 9.98 | S64: 5864.46
A65: P8108 | B65: Meteorologista sênior | C65: mês | E65: 0.7984 | G65: 578.44 | H65: 39.82 | I65: 0 | J65: 0 | K65: 3.17 | L65: 0 | M65: 303.64 | N65: 9.98 | S65: 9968.56
A66: P8112 | B66: Motorista de caminhão | C66: mês | E66: 0.8032 | G66: 578.44 | H66: 46.59 | I66: 0 | J66: 98.32 | K66: 4.37 | L66: 0 | M66: 303.64 | N66: 9.98 | S66: 2011.81
A67: P8113 | B67: Motorista de veículo leve | C67: mês | E67: 0.8009 | G67: 578.44 | H67: 46.22 | I67: 0 | J67: 108.59 | K67: 4.05 | L67: 0 | M67: 303.64 | N67: 9.98 | S67: 1840.67
A68: P8117 | B68: Oceanógrafo júnior | C68: mês | E68: 0.8197 | G68: 578.44 | H68: 38.39 | I68: 0 | J68: 0 | K68: 6.12 | L68: 0 | M68: 303.64 | N68: 9.98 | S68: 4641.01
A69: P8118 | B69: Oceanógrafo pleno | C69: mês | E69: 0.8197 | G69: 578.44 | H69: 38.39 | I69: 0 | J69: 0 | K69: 6.12 | L69: 0 | M69: 303.64 | N69: 9.98 | Q69: =D69+P69 ->  | S69: 6188.02
A70: P8119 | B70: Oceanógrafo sênior | C70: mês | D70: =ROUND($D$2*T70,2) ->  | E70: 0.8197 | F70: =ROUND(D70*E70,2) ->  | G70: 578.44 | H70: 38.39 | I70: 0 | J70: 0 | K70: 6.12 | L70: 0 | M70: 303.64 | N70: 9.98 | O70: =ROUND((Q70-D70)/D70,4) ->  | P70: =SUM(F70:N70) ->  | S70: 10152.41 | T70: =ROUND(S70/$S$2,1) -> 
A71: P8123 | B71: Paleontólogo/Arqueólogo/Antropólogo júnior | C71: mês | E71: 0.8211 | G71: 578.44 | H71: 38.38 | I71: 0 | J71: 33.04 | K71: 5.1 | L71: 0 | M71: 303.64 | N71: 9.98 | S71: 3099.92
A72: P8124 | B72: Paleontólogo/Arqueólogo/Antropólogo pleno | C72: mês | E72: 0.8211 | G72: 578.44 | H72: 38.38 | I72: 0 | J72: 0 | K72: 5.1 | L72: 0 | M72: 303.64 | N72: 9.98 | S72: 4133.22
A73: P8125 | B73: Paleontólogo/Arqueólogo/Antropólogo sênior | C73: mês | E73: 0.8211 | G73: 578.44 | H73: 38.38 | I73: 0 | J73: 0 | K73: 5.1 | L73: 0 | M73: 303.64 | N73: 9.98 | S73: 5881.64
A74: P8129 | B74: Pedagogo júnior | C74: mês | E74: 0.7938 | G74: 578.44 | H74: 38.38 | I74: 0 | J74: 68.47 | K74: 2.75 | L74: 0 | M74: 303.64 | N74: 9.98 | S74: 2509.4
A75: P8130 | B75: Pedagogo pleno | C75: mês | E75: 0.7938 | G75: 578.44 | H75: 38.38 | I75: 0 | J75: 18.28 | K75: 2.75 | L75: 0 | M75: 303.64 | N75: 9.98 | S75: 3345.86
A76: P8131 | B76: Pedagogo sênior | C76: mês | E76: 0.7938 | G76: 578.44 | H76: 38.38 | I76: 0 | J76: 0 | K76: 2.75 | L76: 0 | M76: 303.64 | N76: 9.98 | S76: 5187.51
A77: P8135 | B77: Secretária | C77: mês | D77: 2364.31 | E77: 0.7983 | F77: 2364.31 | G77: 677.01 | H77: 0 | I77: 0 | J77: 77.17 | K77: 3.06 | L77: 0 | M77: 301.75 | N77: 9.98 | O77: 1.4521 | P77: 3433.28 | Q77: 5797.59
A78: P8139 | B78: Sondador | C78: mês | E78: 0.8 | G78: 578.44 | H78: 43.03 | I78: 0 | J78: 110.5 | K78: 3.95 | L78: 0 | M78: 303.64 | N78: 9.98 | S78: 1808.88
A79: P8143 | B79: Técnico ambiental | C79: mês | E79: 0.801 | G79: 578.44 | H79: 43.1 | I79: 0 | J79: 65.53 | K79: 3.8 | L79: 0 | M79: 303.64 | N79: 9.98 | S79: 2558.31
A80: P8147 | B80: Técnico de obras | C80: mês | E80: 0.7999 | G80: 578.44 | H80: 43.03 | I80: 0 | J80: 36.72 | K80: 3.9 | L80: 0 | M80: 303.64 | N80: 9.98 | S80: 3038.5
A81: P8151 | B81: Técnico de segurança do trabalho | C81: mês | E81: 0.8054 | G81: 578.44 | H81: 43.16 | I81: 0 | J81: 0 | K81: 4.63 | L81: 0 | M81: 303.64 | N81: 9.98 | S81: 4012.52
A82: P8155 | B82: Técnico em geoprocessamento | C82: mês | E82: 0.7966 | G82: 578.44 | H82: 43.03 | I82: 0 | J82: 76.81 | K82: 3.12 | L82: 0 | M82: 303.64 | N82: 9.98 | S82: 2370.29
A83: P8159 | B83: Técnico em informática - programador | C83: mês | E83: 0.8002 | G83: 578.44 | H83: 0 | I83: 0 | J83: 26.56 | K83: 3.84 | L83: 0 | M83: 303.64 | N83: 9.98 | S83: 3207.84
A84: P8163 | B84: Topógrafo | C84: mês | E84: 0.8024 | G84: 578.44 | H84: 43.09 | I84: 0 | J84: 88.16 | K84: 4.3 | L84: 0 | M84: 303.64 | N84: 9.98 | S84: 2181.13
A85: P8167 | B85: Arquivista júnior | C85: mês | E85: 0.8022 | G85: 578.44 | H85: 38.46 | I85: 0 | J85: 106.91 | K85: 3.89 | L85: 0 | M85: 303.64 | N85: 9.98 | S85: 1868.66
A86: P8168 | B86: Arquivista pleno | C86: mês | E86: 0.8022 | G86: 578.44 | H86: 38.46 | I86: 0 | J86: 69.54 | K86: 3.89 | L86: 0 | M86: 303.64 | N86: 9.98 | S86: 2491.55
A87: P8169 | B87: Arquivista sênior | C87: mês | E87: 0.8022 | G87: 578.44 | H87: 38.46 | I87: 0 | J87: 0 | K87: 3.89 | L87: 0 | M87: 303.64 | N87: 9.98 | S87: 4028.11
A88: P8173 | B88: Administrador júnior | C88: mês | E88: 0.7976 | G88: 578.44 | H88: 43.59 | I88: 0 | J88: 8.84 | K88: 3.27 | L88: 0 | M88: 303.64 | N88: 9.98 | S88: 3503.23
A89: P8174 | B89: Administrador pleno | C89: mês | E89: 0.7976 | G89: 578.44 | H89: 43.59 | I89: 0 | J89: 0 | K89: 3.27 | L89: 0 | M89: 303.64 | N89: 9.98 | S89: 3979.91
A90: P8175 | B90: Administrador sênior | C90: mês | E90: 0.7976 | G90: 578.44 | H90: 43.59 | I90: 0 | J90: 0 | K90: 3.27 | L90: 0 | M90: 303.64 | N90: 9.98 | S90: 6826.85
A91: Fonte: FGV IBRE
